bitfinex-derivatives/quotes_SOLF0:USTF0_20250311
["timestamp","ask_amount","ask_price","bid_price","bid_amount"]
[1741727879523,7.92090864,127.13,127.11,0.05552258]
[1741727880116,0.05330864,127.13,127.11,7.92372258]
[1741727880313,0.05330864,127.13,127.11,29.87552258]
[1741727880721,7.92090864,127.13,127.11,29.87552258]
[1741727881324,0.05330864,127.13,127.11,37.74352258]
[1741727884526,0.05330864,127.13,127.11,29.87552258]
[1741727884721,7.92070864,127.13,127.11,29.87552258]
[1741727884922,0.05330864,127.13,127.11,29.87552258]
[1741727885122,0.05330864,127.13,127.11,0.05552258]
[1741727885426,0.05330864,127.13,127.12,7.8679]
[1741727887821,0.05330864,127.13,127.11,7.92382258]
[1741727889025,0.05330864,127.13,127.12,7.8679]
[1741727890425,0.05330864,127.13,127.11,7.92372258]
[1741727891427,7.92060864,127.13,127.11,7.92372258]
[1741727891722,0.05330864,127.13,127.11,7.92372258]
[1741727892522,0.05330864,127.13,127.11,0.05552258]
[1741727893227,7.8679,127.12,127.11,0.05552258]
[1741727893532,19.41998557,127.12,127.11,0.05552258]
[1741727895831,11.55208557,127.12,127.11,7.92412258]
[1741727896027,0.05330864,127.13,127.11,7.92412258]
[1741727897326,7.92080864,127.13,127.11,7.92412258]
[1741727899735,7.8679,127.12,127.11,0.05552258]
[1741727901033,19.41998557,127.12,127.11,0.05552258]
[1741727904447,11.55208557,127.12,127.11,0.05552258]
[1741727906138,19.41998557,127.12,127.11,0.05552258]
[1741727907540,11.55208557,127.12,127.11,0.05552258]
[1741727908238,12.88967969,127.13,127.11,0.05552258]
[1741727908838,7.8679,127.12,127.11,0.05552258]
[1741727914946,4.2382,127.12,127.06,37.6512]
[1741727915247,12.83637105,127.09,127.06,37.6512]
[1741727915646,20.70647105,127.09,127.07,7.871]
[1741727917641,12.89526199,127.09,127.07,37.71127156]
[1741727919346,0.05889094,127.09,127.07,37.71127156]
[1741727919550,0.05889094,127.09,127.08,7.8704]
[1741727920047,12.83637105,127.13,127.1,7.8688]
[1741727920243,7.8684,127.12,127.07,42.61637105]
[1741727920744,12.83637105,127.13,127.09,7.8695]
[1741727921151,0.0511485,127.12,127.1,0.05902061]
[1741727921548,7.9193485,127.12,127.1,7.92812061]
[1741727922146,0.0511485,127.12,127.1,7.92812061]
[1741727925556,0.0511485,127.12,127.1,0.05902061]
[1741727925754,7.9191485,127.12,127.1,0.05902061]
[1741727926554,0.0511485,127.12,127.1,7.92812061]
[1741727927156,7.9193485,127.12,127.1,0.05902061]
[1741727928053,0.0511485,127.12,127.1,0.05902061]
[1741727928756,7.9193485,127.12,127.1,0.05902061]
[1741727931059,7.9193485,127.12,127.1,7.92822061]
[1741727931861,7.9193485,127.12,127.1,0.05902061]
[1741727932557,7.9193485,127.12,127.1,7.92822061]
[1741727934364,7.9193485,127.12,127.1,0.05902061]
[1741727934759,0.0511485,127.12,127.1,0.05902061]
[1741727935163,0.0511485,127.12,127.1,7.92782061]
[1741727935769,7.9191485,127.12,127.1,7.92782061]
[1741727936066,0.0511485,127.12,127.1,7.92782061]
[1741727936755,7.9193485,127.12,127.1,7.92782061]
[1741727936959,7.9193485,127.12,127.1,0.05902061]
[1741727938363,20.70497105,127.11,127.1,0.05902061]
[1741727938559,12.83637105,127.11,127.05,29.78]
[1741727938755,12.83637105,127.09,127.05,29.78]
[1741727939562,12.83637105,127.09,127.07,7.8706]
[1741727939755,0.05930776,127.08,127.07,7.8706]
[1741727940156,0.05930776,127.08,127.06,7.93138402]
[1741727940666,0.05930776,127.08,127.06,0.05998402]
[1741727941872,0.05930776,127.08,127.07,7.871]
[1741727943275,12.83637105,127.14,127.06,12.89635507]
[1741727943566,20.70467105,127.12,127.07,17.15667105]
[1741727943768,20.70467105,127.12,127.08,29.76]
[1741727943969,12.83637105,127.12,127.08,29.76]
[1741727944170,12.83637105,127.14,127.12,7.8676]
[1741727944570,12.89092368,127.14,127.12,7.92655061]
[1741727945266,12.89092368,127.14,127.12,7.92665061]
[1741727945476,0.05455263,127.14,127.12,7.92665061]
[1741727945771,0.05455263,127.14,127.13,7.8673]
[1741727945971,0.05455263,127.14,127.12,0.05895061]
[1741727947362,12.89092368,127.14,127.12,0.05895061]
[1741727949274,20.75802368,127.14,127.12,0.05895061]
[1741727949973,12.83708229,127.13,127.12,0.05895061]
[1741727950371,0.05455263,127.14,127.12,29.81895061]
[1741727952477,7.92125263,127.14,127.12,29.81895061]
[1741727952872,0.05455263,127.14,127.12,37.68675061]
[1741727953073,0.05455263,127.14,127.12,29.81895061]
[1741727954271,3.9322,127.19,127.12,45.00911159]
[1741727954481,12.83016098,127.21,127.15,12.83016098]
[1741727954774,12.83016098,127.17,127.16,29.76]
[1741727955070,12.83016098,127.2,127.15,29.76]
[1741727955276,12.83016098,127.2,127.15,42.59016098]
[1741727955472,0.05298106,127.19,127.16,0.05294064]
[1741727956671,0.05298106,127.19,127.17,7.8648]
[1741727957073,0.05298106,127.19,127.16,0.05294064]
[1741727958572,0.05298106,127.19,127.17,7.8645]
[1741727958972,0.05298106,127.19,127.18,29.74]
[1741727959881,0.05298106,127.19,127.16,29.79294064]
[1741727960077,7.8642,127.18,127.16,0.05294064]
[1741727960283,20.69436098,127.18,127.16,0.05294064]
[1741727960673,7.8649,127.17,127.16,0.05294064]
[1741727962173,20.69476098,127.18,127.16,0.05294064]
[1741727962380,12.83016098,127.18,127.16,0.05294064]
[1741727962774,0.05298106,127.19,127.16,29.79294064]
[1741727962973,0.05298106,127.19,127.16,42.62310162]
[1741727964280,0.05298106,127.19,127.16,29.79294064]
[1741727964681,0.05298106,127.19,127.18,7.8642]
[1741727970189,69.53448839,127.29,127.18,20.03126795]
[1741727970381,32.73916795,127.28,127.2,20.03126795]
[1741727970577,7.8591,127.27,127.24,7.86]
[1741727971185,7.91782491,127.27,127.24,7.91688526]
[1741727971582,0.05872491,127.27,127.24,7.91688526]
[1741727971793,0.05872491,127.27,127.24,0.05688526]
[1741727971989,43.57750564,127.32,127.24,20.08815321]
[1741727972289,7.8565,127.31,127.24,20.03126795]
[1741727972488,43.57750564,127.32,127.26,20.03126795]
[1741727972688,43.57750564,127.32,127.27,29.72]
[1741727972993,63.60877359,127.36,127.27,29.72]
[1741727973186,63.60877359,127.36,127.28,0.05799009]
[1741727973187,0.05412597,127.31,127.28,0.05799009]
[1741727973491,0.05412597,127.31,127.29,7.857]
[1741727973686,0.05412597,127.31,127.3,29.72]
[1741727973889,63.60877359,127.36,127.3,29.72]
[1741727974290,63.60877359,127.36,127.3,37.5767]
[1741727974291,7.8543,127.35,127.3,37.5767]
[1741727974689,63.60877359,127.36,127.3,29.72]
[1741727975189,7.91336025,127.34,127.32,0.05969337]
[1741727976995,7.855,127.33,127.32,0.05969337]
[1741727980789,20.0898282,127.34,127.25,7.9754]
[1741727980991,7.8576,127.29,127.26,29.7]
[1741727981593,7.8576,127.29,127.26,37.559]
[1741727982097,7.91658852,127.29,127.26,37.61693657]
[1741727982298,0.05898852,127.29,127.27,29.7]
[1741727982692,0.05898852,127.29,127.26,0.05793657]
[1741727984503,7.8587,127.27,127.26,0.05793657]
[1741727990018,0.05898852,127.29,127.26,0.05793657]
[1741727992110,7.8583,127.28,127.26,0.05793657]
[1741727993512,7.91668852,127.29,127.26,7.91723657]
[1741727993714,0.05898852,127.29,127.26,0.05793657]
[1741727994017,0.05898852,127.29,127.27,7.8586]
[1741727994205,0.05898852,127.29,127.26,0.05793657]
[1741727994407,0.05898852,127.29,127.27,49.71126795]
[1741727994721,24.19796795,127.35,127.27,29.68]
[1741727995110,24.19796795,127.35,127.28,7.8579]
[1741727995311,24.19796795,127.35,127.27,29.68]
[1741727995710,7.8565,127.31,127.3,0.05485788]
[1741728002323,0.05699399,127.32,127.3,0.05485788]
[1741728003828,0.05699399,127.32,127.31,7.8562]
[1741728006220,0.05699399,127.32,127.3,0.05485788]
[1741728006221,0.05699399,127.32,127.3,7.91135788]
[1741728007129,0.05699399,127.32,127.31,7.8562]
[1741728007725,0.05699399,127.32,127.3,7.91135788]
[1741728009430,0.05699399,127.32,127.3,0.05485788]
[1741728009832,0.05699399,127.32,127.3,7.91135788]
[1741728010034,0.05699399,127.32,127.3,0.05485788]
[1741728010433,7.91269399,127.32,127.3,0.05485788]
[1741728010935,0.05699399,127.32,127.3,7.91165788]
[1741728011131,0.05699399,127.32,127.3,0.05485788]
[1741728012432,0.05699399,127.32,127.31,7.8562]
[1741728013631,29.66,127.38,127.34,7.8541]
[1741728013835,53.67966795,127.39,127.34,7.8541]
[1741728014236,7.8528,127.37,127.34,7.8541]
[1741728014535,7.8528,127.37,127.31,29.66]
[1741728014737,7.89611291,127.37,127.34,0.05322115]
[1741728015938,7.89611291,127.37,127.34,7.90722115]
[1741728017237,0.04331291,127.37,127.35,7.8534]
[1741728018230,0.04331291,127.37,127.34,29.71322115]
[1741728019145,0.04331291,127.37,127.35,7.8532]
[1741728019436,0.04331291,127.37,127.34,29.71322115]
[1741728019643,0.04331291,127.37,127.35,7.8537]
[1741728020042,0.04331291,127.37,127.34,29.71322115]
[1741728020242,0.04331291,127.37,127.36,7.8531]
[1741728026243,0.04331291,127.37,127.35,7.8535]
[1741728026444,0.04331291,127.37,127.34,42.49759746]
[1741728027149,0.04331291,127.37,127.35,7.8537]
[1741728028846,0.04331291,127.37,127.34,37.56722115]
[1741728029453,0.04331291,127.37,127.35,7.8537]
[1741728032254,0.04331291,127.37,127.36,7.8531]
[1741728055477,16.1285,127.4,127.35,12.78437631]
[1741728055683,16.1285,127.4,127.37,7.8523]
[1741728056585,28.91287631,127.4,127.37,7.90643779]
[1741728058984,7.8513,127.39,127.37,7.90643779]
[1741728059880,7.8513,127.39,127.37,0.05413779]
[1741728069289,16.1286,127.4,127.37,0.05413779]
[1741728071989,16.1286,127.4,127.37,7.90653779]
[1741728072892,4.2357,127.42,127.37,29.65413779]
[1741728073087,4.2357,127.42,127.37,42.4385141]
[1741728073282,291.05595272,127.45,127.39,12.78437631]
[1741728073493,286.11927641,127.45,127.41,7.8496]
[1741728073794,26.97927641,127.45,127.41,7.90442207]
[1741728073996,26.97927641,127.45,127.42,7.8493]
[1741728074195,19.13157641,127.45,127.41,0.05482207]
[1741728074395,15.08417641,127.45,127.41,0.05482207]
[1741728074893,22.93207641,127.45,127.41,0.05482207]
[1741728075487,10.89437641,127.45,127.41,12.83919838]
[1741728076396,12.78437631,127.48,127.44,7.8482]
[1741728076596,12.78437631,127.48,127.44,37.4282]
[1741728076790,12.78437631,127.48,127.45,0.05181878]
[1741728077196,20.63047631,127.48,127.45,0.05181878]
[1741728077895,7.8461,127.48,127.45,0.05181878]
[1741728078293,10.89437641,127.49,127.45,0.05181878]
[1741728078486,10.89437641,127.49,127.47,12.78437631]
[1741728078687,20.2754,127.52,127.48,29.58]
[1741728079094,12.4318,127.52,127.49,0.05110395]
[1741728079287,12.4318,127.52,127.49,7.89590395]
[1741728079494,10.89437641,127.53,127.49,12.83548026]
[1741728079997,10.89437641,127.53,127.51,12.78437631]
[1741728080195,10.89437641,127.53,127.51,42.36437631]
[1741728081302,55.78915496,127.54,127.51,42.36437631]
[1741728081497,55.78915496,127.54,127.51,50.20787631]
[1741728082003,55.78915496,127.54,127.53,12.78437631]
[1741728082898,7.8386,127.6,127.55,7.8409]
[1741728083090,7.8386,127.6,127.56,42.36437631]
[1741728083298,151.72109325,127.63,127.56,42.41614863]
[1741728083601,12.78437631,127.61,127.56,42.41614863]
[1741728083996,7.8393,127.59,127.56,42.41614863]
[1741728084200,12.78437631,127.61,127.56,42.41614863]
[1741728085192,20.62217631,127.61,127.56,50.25654863]
[1741728085395,12.78437631,127.61,127.56,50.25654863]
[1741728085798,12.78437631,127.61,127.56,42.41614863]
[1741728086002,7.8387,127.6,127.56,42.41614863]
[1741728086193,12.78437631,127.61,127.56,42.41614863]
[1741728086396,7.838,127.61,127.57,7.84]
[1741728087701,12.78437631,127.62,127.56,42.41614863]
[1741728087898,20.62177631,127.62,127.58,7.8395]
[1741728088397,20.62177631,127.62,127.59,0.05174744]
[1741728090799,12.78437631,127.62,127.59,0.05174744]
[1741728091297,7.8382,127.61,127.59,0.05174744]
[1741728091693,12.78437631,127.62,127.59,0.05174744]
[1741728092299,7.8382,127.61,127.59,0.05174744]
[1741728092695,12.78437631,127.62,127.59,0.05174744]
[1741728093304,7.8384,127.6,127.59,0.05174744]
[1741728094104,12.78437631,127.62,127.59,0.05174744]
[1741728094298,12.78437631,127.6,127.59,0.05174744]
[1741728094607,12.78437631,127.6,127.56,29.58]
[1741728095206,12.78437631,127.6,127.54,50.16597631]
[1741728095501,7.89007053,127.58,127.56,0.05166786]
[1741728095705,12.83454684,127.58,127.56,0.05166786]
[1741728096310,16.83264684,127.58,127.56,0.05166786]
[1741728096608,7.8402,127.57,127.56,0.05166786]
[1741728097004,7.8418,127.55,127.53,29.54]
[1741728097205,12.78437631,127.56,127.5,42.32437631]
[1741728097603,20.62547631,127.56,127.52,7.8432]
[1741728097803,12.78437631,127.56,127.5,42.32437631]
[1741728098009,0.05121839,127.54,127.52,0.05887017]
[1741728099809,7.89341839,127.54,127.52,0.05887017]
[1741728100909,0.05121839,127.54,127.52,0.05887017]
[1741728101106,7.8427,127.53,127.52,0.05887017]
[1741728101905,7.89381839,127.54,127.52,0.05887017]
[1741728102609,3.9423,127.53,127.46,12.78437631]
[1741728102809,12.78437631,127.51,127.46,42.32437631]
[1741728103205,12.78437631,127.49,127.45,7.8473]
[1741728103409,12.78437631,127.49,127.44,12.78437631]
[1741728103610,12.78437631,127.49,127.46,0.05527272]
[1741728103611,7.90164832,127.48,127.46,0.05527272]
[1741728104611,0.05574832,127.48,127.46,0.05527272]
[1741728108214,12.84012463,127.48,127.46,0.05527272]
[1741728108810,7.8463,127.47,127.46,0.05527272]
[1741728110115,12.84012463,127.48,127.43,50.17287631]
[1741728110313,4.1265,127.47,127.43,50.17287631]
[1741728111111,11.9731,127.47,127.43,50.17287631]
[1741728111314,11.9731,127.47,127.44,0.05098625]
[1741728113613,12.78437631,127.46,127.44,0.05098625]
[1741728114216,20.63167631,127.46,127.44,0.05098625]
[1741728114413,12.78437631,127.46,127.44,0.05098625]
[1741728114613,12.78437631,127.45,127.41,29.54]
[1741728114814,7.8485,127.44,127.4,42.32437631]
[1741728115013,12.78437631,127.45,127.4,50.17467631]
[1741728115219,7.8489,127.43,127.4,50.17467631]
[1741728115420,7.8489,127.43,127.4,29.54]
[1741728115816,12.84171575,127.43,127.4,0.06030165]
[1741728116619,16.74877631,127.42,127.4,0.06030165]
[1741728116816,7.85,127.41,127.4,0.06030165]
[1741728117221,3.9644,127.42,127.4,0.06030165]
[1741728117621,11.8143,127.42,127.4,0.06030165]
[1741728117822,15.7678,127.42,127.4,0.06030165]
[1741728119320,15.7678,127.42,127.37,7.8523]
[1741728119321,12.78437631,127.41,127.37,7.8523]
[1741728119923,16.69817631,127.41,127.37,7.8523]
[1741728120424,12.83507377,127.4,127.38,0.05288738]
[1741728120624,20.68577377,127.4,127.38,0.05288738]
[1741728122225,12.83507377,127.4,127.38,0.05288738]
[1741728123224,20.68577377,127.4,127.38,0.05288738]
[1741728124623,20.63567631,127.39,127.38,0.05288738]
[1741728125024,12.78437631,127.39,127.35,7.8534]
[1741728125228,12.78437631,127.38,127.35,7.8534]
[1741728125427,0.05069746,127.4,127.35,7.8534]
[1741728125428,12.78437631,127.39,127.35,7.8534]
[1741728125825,20.63657631,127.38,127.34,37.414]
[1741728126325,0.05696964,127.37,127.35,0.05740117]
[1741728126628,7.90956964,127.37,127.35,0.05740117]
[1741728127331,0.05696964,127.37,127.35,0.05740117]
[1741728127527,12.84134595,127.37,127.35,0.05740117]
[1741728127731,12.78437631,127.36,127.35,0.05740117]
[1741728127927,7.8543,127.35,127.29,12.78437631]
[1741728128230,12.78437631,127.34,127.3,7.8565]
[1741728128528,12.78437631,127.33,127.3,7.8565]
[1741728128733,12.78437631,127.33,127.25,194.0084]
[1741728129030,0.05280445,127.31,127.28,42.3986605]
[1741728129327,0.05280445,127.31,127.29,7.8574]
[1741728130530,0.05280445,127.31,127.28,42.3986605]
[1741728130726,0.05280445,127.31,127.28,37.47198419]
[1741728130927,0.05280445,127.31,127.28,29.61428419]
[1741728131334,0.05280445,127.31,127.29,7.8573]
[1741728132739,0.05280445,127.31,127.3,20.64117631]
[1741728138754,12.78437631,127.37,127.35,7.8537]
[1741728139855,12.8409695,127.37,127.35,7.90777234]
[1741728140653,20.6935695,127.37,127.35,0.05407234]
[1741728140957,12.8409695,127.37,127.35,0.05407234]
[1741728141154,12.8409695,127.37,127.35,7.90737234]
[1741728141857,12.8409695,127.37,127.35,0.05407234]
[1741728142059,12.8409695,127.37,127.36,7.8531]
[1741728142455,0.05659319,127.37,127.36,7.8531]
[1741728144762,0.05659319,127.37,127.35,7.90757234]
[1741728144957,12.8409695,127.37,127.35,0.05407234]
[1741728145362,12.8409695,127.37,127.35,7.90757234]
[1741728149061,0.05659319,127.37,127.35,7.90757234]
[1741728150961,0.05659319,127.37,127.35,0.05407234]
[1741728151163,0.05659319,127.37,127.36,7.8531]
[1741728151563,0.05659319,127.37,127.35,0.05407234]
[1741728151564,0.05659319,127.37,127.35,7.90737234]
[1741728154765,0.05659319,127.37,127.35,0.05407234]
[1741728154961,0.05659319,127.37,127.36,7.8531]
[1741728155665,0.05659319,127.37,127.35,7.90747234]
[1741728155867,0.05659319,127.37,127.35,0.05407234]
[1741728156666,7.90909319,127.37,127.35,0.05407234]
[1741728159169,0.05659319,127.37,127.35,7.90777234]
[1741728159363,0.05659319,127.37,127.35,0.05407234]
[1741728160371,0.05659319,127.37,127.36,7.8531]
[1741728162669,0.05659319,127.37,127.35,12.83844865]
[1741728162871,0.05659319,127.37,127.35,7.90757234]
[1741728163657,0.05659319,127.37,127.35,0.05407234]
[1741728164062,7.90909319,127.37,127.35,0.05407234]
[1741728166162,7.90909319,127.37,127.35,7.90767234]
[1741728166371,7.90909319,127.37,127.35,0.05407234]
[1741728169476,0.05659319,127.37,127.35,7.90777234]
[1741728169774,0.05659319,127.37,127.35,0.05407234]
[1741728169977,7.8531,127.36,127.35,0.05407234]
[1741728171974,20.6937695,127.37,127.35,0.05407234]
[1741728172182,12.8409695,127.37,127.35,0.05407234]
[1741728172578,20.6935695,127.37,127.35,0.05407234]
[1741728172972,12.8409695,127.37,127.35,0.05407234]
[1741728173282,0.05659319,127.37,127.35,7.90757234]
[1741728173470,0.05659319,127.37,127.35,0.05407234]
[1741728173875,0.05659319,127.37,127.35,7.90747234]
[1741728177079,0.05659319,127.37,127.35,0.05407234]
[1741728179183,7.90909319,127.37,127.35,0.05407234]
[1741728179589,0.05659319,127.37,127.35,0.05407234]
[1741728180390,0.05659319,127.37,127.35,7.90767234]
[1741728182301,0.05659319,127.37,127.35,0.05407234]
[1741728184506,0.05659319,127.37,127.35,7.90777234]
[1741728184707,0.05659319,127.37,127.35,0.05407234]
[1741728186708,0.05659319,127.37,127.35,7.90777234]
[1741728190806,0.05659319,127.37,127.36,7.8531]
[1741728191010,0.05659319,127.37,127.36,37.3531]
[1741728193507,0.05659319,127.37,127.36,29.5]
[1741728194206,0.05659319,127.37,127.36,37.3531]
[1741728196515,0.05659319,127.37,127.36,29.5]
[1741728196714,0.05659319,127.37,127.35,0.05407234]
[1741728197012,7.90949319,127.37,127.35,0.05407234]
[1741728199118,7.8531,127.36,127.35,0.05407234]
[1741728199620,0.05659319,127.37,127.35,0.05407234]
[1741728199818,7.90939319,127.37,127.35,0.05407234]
[1741728201516,0.05659319,127.37,127.35,0.05407234]
[1741728203421,0.05659319,127.37,127.35,7.90767234]
[1741728205220,0.05659319,127.37,127.36,7.8531]
[1741728210618,0.05659319,127.37,127.36,37.3531]
[1741728212120,0.05659319,127.37,127.36,29.5]
[1741728214017,0.05659319,127.37,127.36,37.3531]
[1741728214717,7.90939319,127.37,127.35,0.05407234]
[1741728218620,0.05659319,127.37,127.35,0.05407234]
[1741728218819,7.8531,127.36,127.35,0.05407234]
[1741728219827,20.63747631,127.36,127.35,0.05407234]
[1741728227833,7.8531,127.36,127.35,0.05407234]
[1741728235141,20.6938695,127.37,127.35,0.05407234]
[1741728237749,12.8409695,127.37,127.35,0.05407234]
[1741728237950,7.8531,127.36,127.35,0.05407234]
[1741728244553,12.8409695,127.37,127.3,29.46]
[1741728244748,20.63877631,127.34,127.3,29.46]
[1741728244943,20.63877631,127.34,127.31,7.8559]
[1741728245149,12.78437631,127.34,127.3,29.46]
[1741728245352,7.855,127.33,127.3,29.46]
[1741728245648,7.855,127.33,127.3,37.3164]
[1741728245855,0.05052662,127.33,127.3,37.37022503]
[1741728246958,0.05052662,127.33,127.31,7.8562]
[1741728249353,0.05052662,127.33,127.32,7.8556]
[1741728251556,0.05052662,127.33,127.3,29.51382503]
[1741728251760,0.05052662,127.33,127.31,7.8559]
[1741728254856,0.05052662,127.33,127.3,0.05382503]
[1741728255056,0.05052662,127.33,127.31,7.8559]
[1741728255256,0.05052662,127.33,127.3,29.51382503]
[1741728255758,0.05052662,127.33,127.31,7.8557]
[1741728256862,0.05052662,127.33,127.32,7.8556]
[1741728261365,0.05052662,127.33,127.31,7.8559]
[1741728261664,0.05052662,127.33,127.3,29.51382503]
[1741728261865,0.05052662,127.33,127.3,37.37032503]
[1741728265268,0.05052662,127.33,127.3,29.51382503]
[1741728265469,0.05052662,127.33,127.31,7.8561]
[1741728266070,0.05052662,127.33,127.32,7.8556]
[1741728266966,4.2023,127.38,127.36,7.8531]
[1741728267965,4.2023,127.38,127.36,7.91141805]
[1741728268171,4.26029365,127.38,127.36,7.91141805]
[1741728269670,0.05799365,127.38,127.36,7.91141805]
[1741728271871,0.05799365,127.38,127.36,0.05831805]
[1741728272467,0.05799365,127.38,127.36,7.91131805]
[1741728273674,0.05799365,127.38,127.36,0.05831805]
[1741728274973,7.90989365,127.38,127.36,0.05831805]
[1741728275274,7.8525,127.37,127.36,0.05831805]
[1741728281478,7.8559,127.32,127.29,12.78437631]
[1741728281676,7.8559,127.32,127.28,62.18913966]
[1741728281876,12.78437631,127.32,127.28,62.18913966]
[1741728282076,7.8567,127.31,127.28,62.18913966]
[1741728282477,7.8567,127.31,127.28,32.76913966]
[1741728282682,7.913055,127.31,127.28,32.82128374]
[1741728283085,7.912855,127.31,127.28,32.82128374]
[1741728283783,12.78437631,127.3,127.28,32.82128374]
[1741728284879,7.8574,127.29,127.28,32.82128374]
[1741728285077,20.64177631,127.29,127.28,32.82128374]
[1741728285277,20.64177631,127.29,127.28,0.05214408]
[1741728291988,12.78437631,127.29,127.24,12.78437631]
[1741728292188,7.8596,127.26,127.22,50.06587631]
[1741728292383,12.78437631,127.27,127.22,42.20437631]
[1741728292881,7.8593,127.26,127.22,50.06577631]
[1741728293082,7.8593,127.26,127.22,20.64577631]
[1741728293277,7.8593,127.26,127.23,0.05516535]
[1741728293278,0.05056199,127.25,127.23,0.05516535]
[1741728293485,12.8349383,127.25,127.23,0.05516535]
[1741728295691,0.05056199,127.25,127.23,0.05516535]
[1741728296077,0.05056199,127.25,127.24,7.8605]
[1741728299487,5.89456688,127.37,127.24,42.20437631]
[1741728299692,7.8575,127.29,127.26,7.859]
[1741728300392,12.78437631,127.3,127.24,42.20437631]
[1741728300690,12.84263874,127.28,127.26,0.05893123]
[1741728300992,12.78437631,127.28,127.22,42.20437631]
[1741728301195,12.78437631,127.25,127.2,29.42]
[1741728301394,12.78437631,127.23,127.2,29.42]
[1741728301795,12.78437631,127.23,127.2,7.8625]
[1741728302290,12.78437631,127.25,127.2,0.0560922]
[1741728302499,0.05212869,127.23,127.2,12.84046851]
[1741728302792,0.05212869,127.23,127.22,7.8618]
[1741728303594,0.05212869,127.23,127.22,37.2818]
[1741728304284,0.05212869,127.23,127.22,50.06617631]
[1741728304596,12.78437631,127.27,127.22,42.20437631]
[1741728305782,0.05408968,127.26,127.24,7.8602]
[1741728305988,0.05408968,127.26,127.23,0.05875343]
[1741728306290,0.05408968,127.26,127.24,7.8605]
[1741728307596,0.05408968,127.26,127.25,7.8599]
[1741728313400,0.05408968,127.26,127.24,7.8602]
[1741728313594,0.05408968,127.26,127.23,0.05875343]
[1741728314200,12.78437631,127.25,127.23,0.05875343]
[1741728315101,7.8605,127.24,127.23,0.05875343]
[1741728315291,12.78437631,127.25,127.23,0.05875343]
[1741728315894,20.64467631,127.25,127.23,0.05875343]
[1741728318499,12.78437631,127.25,127.23,0.05875343]
[1741728318704,7.8605,127.24,127.23,0.05875343]
[1741728319899,7.8605,127.24,127.14,131.07655866]
[1741728319900,42.18437631,127.24,127.14,131.07655866]
[1741728320098,42.18437631,127.24,127.16,7.8654]
[1741728320099,12.78437631,127.19,127.16,7.8654]
[1741728320298,12.78437631,127.19,127.14,173.26093497]
[1741728320497,12.78437631,127.19,127.15,171.06821271]
[1741728320701,12.78437631,127.19,127.15,178.93401271]
[1741728321103,0.05691218,127.18,127.16,0.05585235]
[1741728321406,0.05691218,127.18,127.16,7.92125235]
[1741728321805,0.05691218,127.18,127.16,0.05585235]
[1741728322001,0.05691218,127.18,127.17,7.8649]
[1741728323408,0.05691218,127.18,127.16,7.92105235]
[1741728324604,0.05691218,127.18,127.17,7.8649]
[1741728328813,0.05691218,127.18,127.16,29.45585235]
[1741728329809,7.92151218,127.18,127.16,0.05585235]
[1741728330203,0.05691218,127.18,127.16,0.05585235]
[1741728330403,12.78437631,127.17,127.16,0.05585235]
[1741728331304,12.78437631,127.17,127.12,4.1407]
[1741728331512,12.78437631,127.15,127.1,183.60130868]
[1741728331903,20.65087631,127.15,127.11,37.2883]
[1741728332104,20.65087631,127.15,127.11,29.42]
[1741728332105,12.78437631,127.15,127.11,29.42]
[1741728332409,0.0550169,127.14,127.12,0.04964865]
[1741728334710,0.0550169,127.14,127.12,7.91734865]
[1741728335305,0.0550169,127.14,127.13,7.8673]
[1741728336907,0.0550169,127.14,127.13,20.65167631]
[1741728338110,12.78437631,127.18,127.16,7.8649]
[1741728338310,12.78437631,127.18,127.14,29.42]
[1741728338916,12.78437631,127.18,127.16,7.8652]
[1741728339413,12.84141334,127.18,127.16,7.9240625]
[1741728340706,12.84141334,127.18,127.17,7.8649]
[1741728343117,12.84141334,127.18,127.16,7.9239625]
[1741728343319,12.84141334,127.18,127.16,0.0588625]
[1741728343618,0.05703703,127.18,127.16,7.9241625]
[1741728343811,12.84141334,127.18,127.16,7.9241625]
[1741728344215,12.84141334,127.18,127.17,7.8649]
[1741728345716,0.05703703,127.18,127.17,7.8649]
[1741728348212,0.05703703,127.18,127.17,37.2649]
[1741728350016,12.78437631,127.31,127.17,221.76]
[1741728350220,17.02157631,127.31,127.25,12.78437631]
[1741728350420,17.02157631,127.31,127.25,42.18437631]
[1741728350622,17.02157631,127.31,127.28,7.858]
[1741728351017,17.07877855,127.31,127.28,0.04990386]
[1741728351213,17.07877855,127.31,127.29,7.8571]
[1741728352219,4.29440224,127.31,127.3,7.8568]
[1741728352520,0.05720224,127.31,127.3,7.8568]
[1741728353321,0.05720224,127.31,127.28,0.04990386]
[1741728353825,260.88698419,127.41,127.28,0.04990386]
[1741728353826,109.50035855,127.43,127.3,19.99921157]
[1741728354021,4.1758,127.41,127.31,29.4]
[1741728354220,4.1758,127.41,127.37,7.852]